bitfinex/quotes_ETHUSD_20241212
["timestamp","ask_amount","ask_price","bid_price","bid_amount"]
[1734035160532,3.41118,3870.8,3869.5,0.7806]
[1734035160952,2.58365,3870.5,3869.5,0.7306]
[1734035161139,2.58365,3870.5,3869.6,0.6082951]
[1734035161339,3.41098,3871.1,3869.7,0.02583813]
[1734035161578,0.7855,3871.5,3869.7,0.02583813]
[1734035161780,2.58344,3870.9,3869.8,2.06728]
[1734035162080,2.58344,3870.9,3869.8,5.06728]
[1734035162380,2.58319,3871.2,3870.0,2.06715]
[1734035162584,2.58319,3871.2,3870.0,5.06715]
[1734035163183,2.58327,3871.1,3870.0,5.06715]
[1734035163361,2.58338,3870.9,3869.9,4.15151343]
[1734035163550,2.5835,3870.8,3869.9,1.15151343]
[1734035163879,2.5835,3870.8,3870.0,0.17015134]
[1734035164085,2.5835,3870.8,3870.1,0.7624]
[1734035164290,2.58332,3871.0,3870.1,0.7624]
[1734035164498,2.58314,3871.3,3870.1,0.7624]
[1734035164657,2.58293,3871.6,3870.4,0.7624]
[1734035164862,4.93042135,3872.1,3870.5,0.7624]
[1734035165193,0.7639,3872.2,3870.9,3.0]
[1734035165194,2.58251,3872.2,3870.9,3.0]
[1734035165529,0.7639,3872.6,3871.0,0.78982696]
[1734035165794,2.58265,3872.0,3871.1,0.764]
[1734035165957,2.58265,3872.0,3871.2,0.3764]
[1734035166159,2.58252,3872.2,3871.2,0.3764]
[1734035166359,2.58259,3872.1,3871.1,3.764]
[1734035166760,2.58291,3871.6,3871.1,0.764]
[1734035166956,2.5826,3872.1,3871.1,0.764]
[1734035167161,2.58285,3871.7,3871.1,0.764]
[1734035169174,2.58272,3871.9,3871.1,0.764]
[1734035169367,2.58241,3872.4,3871.1,0.764]
[1734035169568,2.58244,3872.3,3871.1,0.764]
[1734035169790,2.58262,3872.1,3871.1,0.764]
[1734035169992,0.7639,3872.6,3871.1,0.764]
[1734035170193,2.58243,3872.4,3871.3,3.8093]
[1734035170405,2.58225,3872.6,3871.5,2.06637]
[1734035170619,3.09880135,3873.3,3871.7,0.7682]
[1734035170780,2.58219,3872.7,3871.7,0.7682]
[1734035171303,2.58226,3872.6,3871.7,0.7682]
[1734035171722,0.751,3873.3,3871.9,0.7824]
[1734035171948,0.751,3873.3,3872.0,0.7824]
[1734035171949,2.58196,3873.1,3872.0,0.7824]
[1734035172167,2.58196,3873.1,3872.1,0.7824]
[1734035173107,0.79,3873.6,3872.1,0.7824]
[1734035173432,2.58206,3872.9,3872.1,0.7824]
[1734035173752,2.58216,3872.8,3872.1,0.7824]
[1734035173966,2.34780135,3872.9,3872.1,0.7824]
[1734035174107,2.58251,3872.2,3871.7,0.8278]
[1734035174515,2.58259,3872.1,3871.7,0.8278]
[1734035175143,2.58224,3872.6,3871.7,0.8278]
[1734035175450,2.58217,3872.7,3871.7,0.8278]
[1734035175675,2.58224,3872.6,3871.7,0.8278]
[1734035175968,2.58246,3872.3,3871.7,0.8278]
[1734035176270,2.58253,3872.2,3871.7,0.8278]
[1734035177276,0.28170201,3872.5,3871.7,0.5782]
[1734035177431,2.81692014,3872.8,3871.8,0.02582487]
[1734035177632,2.81692014,3872.8,3871.7,2.06626]
[1734035177633,2.58214,3872.8,3871.7,2.06626]
[1734035178050,2.58214,3872.8,3871.5,0.55]
[1734035178251,2.58219,3872.7,3871.6,3.0]
[1734035178443,2.58229,3872.6,3871.5,0.55]
[1734035178845,2.58229,3872.6,3871.5,3.55]
[1734035179052,2.58229,3872.6,3871.5,4.111643]
[1734035179249,2.34780135,3872.9,3871.2,3.0]
[1734035179568,4.92985135,3872.9,3871.3,5.06648]
[1734035179737,2.58239,3872.4,3871.3,5.06648]
[1734035180298,2.58268,3872.0,3871.4,0.8305]
[1734035181567,2.58253,3872.2,3871.4,0.8305]
[1734035182283,2.840627,3872.4,3871.4,0.8305]
[1734035183262,2.58247,3872.3,3871.4,0.8305]
[1734035183478,2.5829,3871.7,3871.4,0.8305]
[1734035183843,2.58319,3871.2,3869.5,4.41523135]
[1734035184043,2.58319,3871.2,3870.8,0.792]
[1734035185045,2.58291,3871.6,3870.8,0.792]
[1734035185046,2.58292,3871.6,3870.8,0.792]
[1734035185252,2.58299,3871.5,3870.8,0.792]
[1734035185482,0.258292,3871.6,3870.8,0.792]
[1734035185683,5.58268,3872.0,3870.8,0.792]
[1734035185684,2.58305,3871.4,3870.8,0.792]
[1734035186190,2.58311,3871.3,3870.8,0.792]
[1734035186356,2.58311,3871.3,3870.4,0.792]
[1734035186357,2.58345,3870.8,3870.4,0.792]
[1734035186569,2.34780135,3870.9,3870.4,0.792]
[1734035186767,2.34780135,3870.9,3870.0,0.792]
[1734035186768,2.58365,3870.5,3870.0,0.792]
[1734035187343,2.5835,3870.8,3870.0,0.792]
[1734035187596,2.58308,3871.4,3870.1,0.02583643]
[1734035187901,3.12800135,3871.7,3870.3,0.792]
[1734035188779,5.71085135,3871.7,3870.3,0.792]
[1734035188982,2.58317,3871.2,3870.3,0.792]
[1734035189754,2.5833,3871.1,3870.3,0.792]
[1734035190007,2.58337,3871.0,3870.3,0.792]
[1734035190153,2.841507,3871.2,3870.3,0.792]
[1734035192025,2.58348,3870.8,3870.3,0.792]
[1734035192337,2.58324,3871.1,3870.3,0.792]
[1734035192553,0.258317,3871.2,3870.3,0.792]
[1734035192554,2.58346,3870.8,3870.3,0.792]
[1734035193322,0.77725084,3871.0,3870.3,0.792]
[1734035193535,0.258317,3871.2,3870.3,0.792]
[1734035193841,2.58354,3870.7,3870.3,0.792]
[1734035194014,2.34780135,3870.9,3869.9,2.27341221]
[1734035194335,2.58373,3870.4,3869.9,2.27341221]
[1734035194541,2.58357,3870.6,3869.9,2.27341221]
[1734035194930,2.58367,3870.5,3869.9,2.27341221]
[1734035195333,2.58376,3870.4,3869.9,2.27341221]
[1734035195745,2.58356,3870.7,3869.9,2.27341221]
[1734035195929,0.7703,3871.1,3869.9,2.27341221]
[1734035196130,2.58331,3871.0,3869.9,2.27341221]
[1734035196449,2.58352,3870.7,3869.9,2.27341221]
[1734035197030,3.2028957,3870.9,3869.9,2.27341221]
[1734035197346,2.58347,3870.8,3869.9,2.27341221]
[1734035199207,2.58358,3870.6,3869.9,2.27341221]
[1734035199412,5.55075705,3870.9,3869.9,2.27341221]
[1734035199635,2.58363,3870.6,3869.9,2.27341221]
[1734035200046,2.58351,3870.7,3869.9,2.27341221]
[1734035200456,2.58351,3870.7,3869.1,0.12741016]
[1734035200457,2.5841,3869.9,3869.5,0.7677]
[1734035200668,3.0,3870.6,3869.1,0.12741016]
[1734035200669,2.58419,3869.7,3869.2,0.7677]
[1734035201005,2.58431,3869.5,3869.2,0.7677]
[1734035201232,0.49321113,3869.5,3869.2,0.7677]
[1734035201417,0.49321113,3869.5,3867.8,2.0683]
[1734035201418,2.58448,3869.3,3868.4,1.27295032]
[1734035201749,0.7761,3869.9,3868.4,0.7677]
[1734035201750,2.34780135,3869.4,3868.4,0.7677]
[1734035201970,2.58459,3869.1,3868.4,0.7677]
[1734035202151,2.34780135,3869.4,3868.4,0.7677]
[1734035202321,2.58449,3869.3,3868.4,0.7677]
[1734035202520,2.34780135,3869.4,3868.4,0.7677]
[1734035202521,3.33618614,3869.2,3868.4,0.7677]
[1734035202734,0.75166614,3869.2,3868.4,0.7677]
[1734035203047,2.58458,3869.1,3868.4,0.7677]
[1734035205248,2.58432,3869.5,3868.4,0.7677]
[1734035205451,0.7761,3870.2,3868.3,0.7677]
[1734035205452,2.34780135,3869.9,3868.3,0.7677]
[1734035205609,2.58438,3869.4,3868.3,0.7677]
[1734035205808,2.58438,3869.4,3868.3,2.83577]
[1734035206053,2.58438,3869.4,3868.3,3.17225314]
[1734035206232,2.34780135,3869.5,3868.5,0.7677]
[1734035206738,4.93211135,3869.5,3868.5,0.7677]
[1734035207120,2.34780135,3869.5,3868.5,0.7677]
[1734035207452,2.34780135,3869.5,3868.6,2.06792]
[1734035208353,2.34780135,3869.5,3868.7,2.06786]
[1734035208675,2.34780135,3870.3,3868.9,0.7677]
[1734035208833,2.58385,3870.2,3869.2,0.7677]
[1734035209781,2.34780135,3870.3,3869.2,0.7677]
[1734035209980,2.58384,3870.2,3869.2,0.7677]
[1734035210181,2.58391,3870.1,3869.2,0.7677]
[1734035210382,0.49316413,3870.2,3869.2,0.7677]
[1734035210383,2.58404,3870.0,3869.2,0.7677]
[1734035210586,2.58411,3869.8,3869.2,0.7677]
[1734035211456,2.34780135,3870.3,3869.2,0.7677]
[1734035211657,2.58391,3870.2,3869.2,0.7677]
[1734035211883,2.58391,3870.2,3869.2,3.7677]
[1734035212099,2.58391,3870.2,3869.3,0.583534]
[1734035212398,2.34780135,3870.3,3869.3,0.583534]
[1734035212583,2.34780135,3870.3,3869.2,2.8353]
[1734035213155,0.7761,3870.6,3869.2,2.8353]
[1734035213156,3.35969,3870.6,3869.4,2.06749]
[1734035213377,0.8229,3870.9,3869.5,0.02584144]
[1734035213557,2.60611835,3871.2,3868.9,2.34780135]
[1734035213558,1.033112,3871.1,3869.9,0.8273]
[1734035213787,2.58339,3870.9,3870.0,0.02583772]
[1734035214172,3.42901835,3871.2,3870.0,0.02583772]
[1734035214173,2.58326,3871.1,3870.0,0.02583772]
[1734035214380,0.70453614,3871.0,3870.0,0.02583772]
[1734035214560,2.58331,3871.0,3869.9,2.89452]
[1734035214921,2.841507,3871.2,3870.1,0.8273]
[1734035215063,2.58328,3871.1,3870.1,0.8273]
[1734035215262,0.258317,3871.2,3870.1,2.89441]
[1734035215834,0.258317,3871.2,3870.2,0.8273]
[1734035216107,2.58311,3871.3,3870.4,0.8155]
[1734035216971,3.17070135,3871.6,3870.4,0.8155]
[1734035217174,2.58297,3871.5,3870.4,0.8155]
[1734035217413,2.58304,3871.4,3870.4,0.8155]
[1734035217621,3.17070135,3871.6,3870.4,0.8155]
[1734035217622,2.34780135,3871.2,3870.4,0.8155]
[1734035217824,2.34780135,3871.2,3869.6,3.0]
[1734035217825,2.58365,3870.5,3870.0,0.8155]
[1734035218105,2.34780135,3870.8,3870.0,0.8155]
[1734035218317,2.58379,3870.3,3870.0,0.8155]
[1734035218918,4.93129135,3870.8,3870.0,0.8155]
[1734035218919,2.58365,3870.5,3870.0,0.8155]
[1734035219080,2.58352,3870.7,3870.0,0.8155]
[1734035219284,1.02388014,3871.1,3870.0,0.8155]
[1734035219478,2.58344,3870.9,3870.0,0.8155]
[1734035219976,2.58349,3870.8,3870.0,0.8155]
[1734035220181,2.58349,3870.8,3869.0,3.0]
[1734035220182,0.7891,3870.5,3869.0,0.8155]
[1734035220494,2.58413,3869.8,3869.0,0.8155]
[1734035221125,2.58419,3869.7,3869.0,0.8155]
[1734035221310,2.58388,3870.2,3869.0,0.8155]
[1734035221510,0.7891,3870.5,3869.2,0.7959]
[1734035221728,0.7891,3870.5,3869.3,0.286355]
[1734035221729,2.58389,3870.2,3869.3,0.286355]
[1734035221943,2.34780135,3870.7,3869.4,0.7959]
[1734035221944,2.58372,3870.4,3869.4,0.7959]
[1734035222995,0.8251,3870.8,3869.4,0.7959]
[1734035223200,2.58392,3870.1,3869.4,0.7959]
[1734035223643,2.58398,3870.0,3869.4,0.7959]
[1734035223826,2.58385,3870.2,3869.4,0.821742]
[1734035224039,2.58372,3870.4,3869.4,0.7959]
[1734035224234,3.40858,3870.8,3869.5,0.3149805]
[1734035224400,3.40858,3870.8,3869.4,0.7959]
[1734035224601,2.58376,3870.4,3869.4,0.7959]
[1734035224940,2.58376,3870.4,3869.6,0.7959]
[1734035225647,3.40858,3870.8,3869.6,0.7959]
[1734035225802,2.58387,3870.2,3869.6,0.7959]
[1734035226007,3.40858,3870.8,3869.6,0.7959]
[1734035226233,2.58392,3870.1,3869.6,0.7959]
[1734035226742,2.58379,3870.3,3869.6,0.7959]
[1734035228202,2.58358,3870.6,3869.6,0.7959]
[1734035228453,2.58389,3870.2,3869.6,0.7959]
[1734035228947,2.58371,3870.5,3869.6,0.7959]
[1734035229154,2.58375,3870.4,3869.6,0.7959]
[1734035230048,0.40040692,3870.7,3869.6,0.7959]
[1734035230203,2.34780135,3871.2,3868.6,2.13519509]
[1734035230204,3.42025354,3871.2,3869.9,0.778]
[1734035230403,2.58314,3871.3,3870.3,0.778]
[1734035230636,2.58314,3871.3,3869.9,3.0]
[1734035230637,2.58296,3871.6,3870.4,2.84496]
[1734035230804,0.36554122,3871.5,3870.5,0.778]
[1734035231150,2.58343,3870.9,3870.5,0.778]
[1734035231906,0.8075,3871.2,3870.5,0.778]
[1734035232107,2.58342,3870.9,3870.5,0.778]
[1734035232411,3.39071,3871.2,3869.9,0.8316]
[1734035232412,2.58354,3870.7,3869.9,0.8316]
[1734035233420,0.258354,3870.7,3869.9,0.8316]
[1734035233641,2.58375,3870.4,3869.9,0.8316]
[1734035234020,2.58064129,3870.4,3869.9,0.8316]
[1734035234242,2.58378,3870.3,3869.9,0.8316]
[1734035234459,2.58392,3870.1,3869.9,0.8316]
[1734035234754,2.58392,3870.1,3868.6,1.07184494]
[1734035234755,2.58392,3870.1,3869.1,0.51366396]
[1734035235053,2.58376,3870.4,3869.2,2.8992]
[1734035235220,2.58376,3870.4,3869.3,0.8316]
[1734035235945,0.7641,3870.6,3869.3,3.8316]
[1734035235946,2.58385,3870.2,3869.3,3.8316]
[1734035239108,2.58385,3870.2,3869.3,0.8316]
[1734035239992,0.258354,3870.7,3869.3,0.8316]
[1734035240126,2.58384,3870.3,3869.4,0.98785614]
[1734035240533,2.58385,3870.2,3869.4,0.98785614]
[1734035241482,2.58391,3870.1,3869.4,0.98785614]
[1734035243774,0.8013,3870.5,3869.4,0.98785614]
[1734035244187,0.8013,3870.5,3869.5,0.60554161]
[1734035244776,1.0801581,3870.9,3869.6,0.757]
[1734035245041,2.58344,3870.8,3869.8,2.06728]
[1734035245320,2.58344,3870.8,3869.9,0.7828372]
[1734035245528,2.5833,3871.1,3870.0,0.7992]
[1734035245679,2.5833,3871.1,3870.2,0.7992]
[1734035246018,2.58337,3870.9,3870.2,0.7992]
[1734035246222,2.58347,3870.8,3870.2,0.7992]
[1734035246434,2.58368,3870.5,3870.2,0.7992]
[1734035246576,2.58324,3871.1,3869.3,1.07477552]
[1734035246577,2.58384,3870.2,3869.3,0.7992]
[1734035246774,2.58384,3870.2,3869.4,0.62080974]
[1734035248012,0.7953,3870.7,3869.4,0.62080974]
[1734035248333,2.58373,3870.4,3869.5,0.8025]
[1734035249912,0.7953,3870.7,3869.5,0.8025]
[1734035250128,1.8754581,3870.7,3869.5,0.8025]
[1734035250289,2.58413,3869.8,3869.5,0.8025]
[1734035250626,1.0801581,3870.4,3869.2,0.8074]
[1734035250627,0.763,3870.0,3869.2,0.8074]
[1734035250927,2.58426,3869.6,3869.2,0.8074]
[1734035251626,0.763,3870.0,3869.2,0.8074]
[1734035252222,0.89422531,3869.9,3869.2,0.8074]
[1734035252426,3.47827531,3869.9,3869.2,0.8074]
[1734035252627,0.763,3870.0,3869.2,0.8074]
[1734035252628,3.11625334,3869.8,3869.2,0.8074]
[1734035253134,0.53214334,3869.8,3869.2,0.8074]
[1734035253286,2.58433,3869.5,3869.2,0.8074]
[1734035253621,2.58448,3869.3,3868.5,0.7752]
[1734035253778,2.58473,3868.9,3868.5,0.7752]
[1734035253976,2.58485,3868.7,3868.1,2.02267068]
[1734035254235,2.58485,3868.7,3868.2,0.7752]
[1734035254382,2.843455,3868.6,3868.2,0.7752]
[1734035254728,2.58497,3868.6,3868.2,0.7752]
[1734035255438,2.34780135,3868.9,3868.1,1.4956563]
[1734035255439,2.58504,3868.4,3868.1,1.4956563]
[1734035256514,2.58491,3868.7,3868.1,1.4956563]
[1734035256710,2.34780135,3868.5,3867.5,0.7752]
[1734035256938,4.93278135,3868.5,3867.5,0.7752]
[1734035257141,2.58528,3868.1,3867.5,0.7752]
[1734035257354,0.49327814,3868.4,3867.5,0.7752]
[1734035257522,2.58538,3867.9,3867.5,0.7752]
[1734035257722,3.10480135,3868.1,3867.5,0.7752]
[1734035257952,2.58498,3868.5,3867.5,0.7752]
[1734035258108,2.58498,3868.6,3867.5,0.7752]
[1734035258312,3.10480135,3868.9,3867.5,1.059583]
[1734035258559,2.58499,3868.5,3867.5,1.059583]
[1734035258807,2.58485,3868.7,3867.5,3.128083]
[1734035258971,3.10480135,3868.9,3867.6,0.7673]
[1734035259132,2.58487,3868.7,3867.6,2.83575]
[1734035259467,3.10480135,3868.9,3867.8,0.8138]
[1734035259468,4.93252135,3868.9,3867.8,0.8138]
[1734035259761,2.58454,3869.2,3868.1,0.8138]
[1734035259928,2.58491,3868.7,3868.1,0.8138]
[1734035260132,2.58489,3868.7,3868.1,0.8138]
[1734035260353,2.58492,3868.6,3868.1,0.8138]
[1734035261441,2.34780135,3868.9,3868.1,0.8138]
[1734035261655,2.58482,3868.8,3868.1,0.8138]
[1734035262951,2.58465,3869.0,3868.1,0.8138]
[1734035263331,2.34780135,3869.3,3868.1,0.8138]
[1734035263519,2.58478,3868.8,3868.1,0.8138]
[1734035264458,2.58497,3868.6,3868.1,0.8138]
[1734035265519,2.34780135,3869.3,3868.1,0.8138]
[1734035265835,2.58479,3868.8,3868.1,0.8138]
[1734035266436,2.95340047,3869.2,3868.1,0.8138]
[1734035266592,2.58486,3868.7,3868.1,0.8138]
[1734035267758,2.58497,3868.6,3868.1,0.8138]
[1734035268492,0.36889047,3869.2,3868.1,0.8138]
[1734035268790,2.58466,3869.0,3868.1,0.8138]
[1734035269445,2.58447,3869.3,3868.1,0.8138]
[1734035269640,2.58453,3869.2,3868.3,0.8026]
[1734035269875,2.34780135,3869.7,3868.3,0.8026]
[1734035270064,2.58424,3869.6,3868.3,0.8026]
[1734035270259,2.58458,3869.1,3868.3,0.8026]
[1734035270963,2.58445,3869.3,3868.3,0.8026]
[1734035271749,2.58452,3869.2,3868.3,0.8026]
[1734035272204,2.34780135,3869.7,3868.3,0.8026]
[1734035272205,2.58466,3869.0,3868.3,0.8026]
[1734035272507,2.58435,3869.5,3868.3,0.8026]
[1734035272727,3.15438514,3869.5,3868.3,0.8026]
[1734035272878,0.57003514,3869.5,3868.3,0.8026]
[1734035273333,2.58438,3869.4,3868.3,0.8026]
[1734035273616,4.93201135,3869.7,3868.3,0.8026]
[1734035273985,2.58452,3869.2,3868.3,0.8026]
[1734035274185,4.93201135,3869.7,3868.3,0.8026]
[1734035274186,2.58434,3869.5,3868.3,0.8026]
[1734035274388,2.58434,3869.5,3868.4,0.8003]
[1734035274623,2.34780135,3869.7,3868.6,0.8003]
[1734035274925,4.93200135,3869.7,3868.6,0.8003]
[1734035275122,2.5842,3869.7,3868.6,0.8003]
[1734035275328,3.14970135,3870.1,3868.6,0.8003]
[1734035275483,2.5842,3869.7,3868.6,0.8003]
[1734035275819,2.5842,3869.7,3868.8,0.7513]
[1734035278530,2.58412,3869.8,3868.8,0.7513]
[1734035279081,3.14970135,3870.1,3868.8,0.7513]
[1734035279082,2.58422,3869.7,3868.8,0.7513]
[1734035279921,2.58423,3869.7,3868.8,0.7513]
[1734035280512,5.73365135,3870.1,3868.8,0.7513]
[1734035280720,2.58412,3869.8,3868.8,0.7513]
[1734035280914,6.46738039,3870.1,3868.8,0.7513]
[1734035280915,2.58404,3869.9,3868.8,0.7513]
[1734035281095,2.58398,3870.0,3868.9,2.32622]
[1734035281296,2.5841,3869.9,3869.0,0.7886]
[1734035281784,2.5841,3869.9,3869.0,1.100096]
[1734035282521,2.5841,3869.9,3869.0,0.7886]
[1734035283128,3.15550135,3870.5,3869.0,0.7886]
[1734035283328,2.58391,3870.1,3869.0,0.7886]
[1734035283630,3.15550135,3870.5,3869.0,0.7886]
[1734035283631,2.58399,3870.0,3869.0,0.7886]
[1734035284180,2.34780135,3870.5,3869.0,0.7886]
[1734035284411,2.58426,3869.6,3869.0,0.7886]
[1734035285081,2.58434,3869.5,3869.0,0.7886]
[1734035285288,2.5844,3869.4,3869.0,0.7886]
[1734035286131,2.34780135,3869.2,3867.8,0.8328]
[1734035286334,2.58508,3868.4,3867.8,0.8328]
[1734035286989,2.58521,3868.2,3867.8,0.8328]
[1734035287393,2.58505,3868.4,3867.8,0.8328]
[1734035287727,2.34780135,3868.7,3867.8,0.8328]
[1734035287929,2.88258149,3868.7,3867.8,0.8328]
[1734035288139,2.34780135,3868.7,3867.8,0.8328]
[1734035288439,2.58517,3868.3,3867.8,0.8328]
[1734035288807,2.34780135,3868.7,3867.8,0.8328]
[1734035288808,2.58519,3868.2,3867.8,0.8328]
[1734035289006,2.58538,3867.9,3867.8,0.8328]
[1734035289202,2.58538,3867.9,3866.6,2.32757]
[1734035289203,0.8287,3868.3,3866.8,3.8328]
[1734035289402,0.8287,3868.3,3866.9,0.68328]
[1734035289403,2.58546,3867.8,3866.9,0.68328]
[1734035289886,2.58546,3867.8,3867.0,0.52247402]
[1734035290202,0.8287,3868.3,3866.9,0.68328]
[1734035290203,2.58532,3868.0,3866.9,0.8328]
[1734035290406,2.58538,3867.9,3866.9,3.8328]
[1734035290717,2.34780135,3867.9,3866.9,0.8328]
[1734035290955,2.34780135,3867.5,3866.9,0.8328]
[1734035291254,2.58591,3867.2,3866.9,0.8328]
[1734035291596,2.58591,3867.2,3866.2,0.8084]
[1734035292247,2.58592,3867.1,3866.2,0.8084]
[1734035292534,2.34780135,3867.5,3866.2,0.8084]
[1734035292535,2.58579,3867.3,3866.2,0.8084]
[1734035292755,2.58579,3867.3,3866.3,0.76327368]
[1734035293467,2.58585,3867.2,3866.2,0.8084]
[1734035293612,2.34780135,3867.5,3866.2,0.8084]
[1734035293913,2.58571,3867.4,3866.2,0.8084]
[1734035294552,2.58592,3867.1,3866.2,0.8084]
[1734035294750,3.3701,3867.0,3866.1,1.49635678]
[1734035294976,2.34780135,3866.7,3866.1,1.49635678]
[1734035295257,2.58637,3866.5,3866.1,1.49635678]
[1734035295812,2.34780135,3866.7,3866.1,1.49635678]
[1734035296625,2.58651,3866.2,3865.5,0.7562]
[1734035297926,2.34780135,3866.7,3865.5,0.7562]
[1734035298239,2.58631,3866.6,3865.5,3.08448]
[1734035298454,2.58631,3866.6,3865.6,0.308448]
[1734035298647,2.34780135,3866.7,3865.6,0.308448]
[1734035299264,4.93398135,3866.7,3865.6,0.308448]
[1734035300714,2.34780135,3867.1,3865.7,0.84706812]
[1734035300914,0.23478014,3867.8,3865.1,3.0]
[1734035300915,4.93345135,3867.5,3866.4,0.8212]
[1734035301143,4.93345135,3867.5,3866.4,1.136097]
[1734035301624,2.34780135,3867.5,3866.4,1.136097]
[1734035302173,2.58573,3867.4,3866.4,1.136097]
[1734035302388,2.34780135,3867.1,3866.0,3.8212]
[1734035302668,2.34780135,3867.1,3866.0,0.8212]
[1734035302983,0.8178,3867.4,3866.4,0.7936]
[1734035302984,2.58573,3867.4,3866.4,0.7936]
[1734035303267,2.58573,3867.4,3865.5,0.50629835]
[1734035303268,2.34780135,3867.9,3866.8,2.32749]
[1734035303418,2.58538,3867.9,3866.7,0.7936]
[1734035303773,2.58538,3867.9,3866.8,0.312122]
[1734035303774,4.93318135,3867.9,3866.8,0.312122]
[1734035304208,4.93318135,3867.9,3866.7,0.7936]
[1734035304513,2.34780135,3867.9,3866.7,0.7936]
[1734035304809,4.93291135,3868.3,3867.1,0.7604]
[1734035305013,2.5852,3868.2,3867.1,0.7604]
[1734035305156,2.5852,3868.2,3866.4,0.52432713]
[1734035305157,2.34780135,3867.2,3865.1,3.64655461]
[1734035305356,2.58635,3866.5,3865.6,0.7604]
[1734035305560,2.34780135,3866.8,3865.6,0.7604]
[1734035305955,2.58634,3866.5,3865.6,0.7604]
[1734035306198,2.34780135,3866.8,3865.6,0.7604]
[1734035306410,2.58646,3866.3,3865.6,0.7604]
[1734035307109,2.58653,3866.2,3865.6,0.7604]
[1734035307975,2.5864,3866.4,3865.6,0.7604]
[1734035308598,2.58649,3866.3,3865.6,0.7604]
[1734035310884,2.58639,3866.4,3865.6,0.7604]
[1734035311086,2.34780135,3866.8,3865.6,0.7604]
[1734035311087,2.58645,3866.3,3865.6,0.7604]
[1734035312512,2.58629,3866.6,3865.6,0.7604]
[1734035312899,2.58634,3866.5,3865.6,0.7604]
[1734035313307,2.34780135,3866.4,3865.6,0.7604]
[1734035313520,2.58663,3866.1,3865.6,0.7604]
[1734035314032,2.58668,3866.0,3865.1,1.49700356]
[1734035314240,2.845398,3865.9,3865.2,0.7608]
[1734035314534,2.5868,3865.8,3865.2,0.7608]
[1734035314882,0.258668,3865.9,3865.2,0.7608]
[1734035315422,2.845428,3865.9,3865.2,0.7608]
[1734035316126,0.258668,3865.9,3865.2,0.7608]
[1734035316508,2.845398,3865.9,3865.2,0.7608]
[1734035316839,2.5869,3865.7,3865.2,0.7608]
[1734035317047,0.59931993,3865.8,3865.2,0.7608]
[1734035317184,3.18609993,3865.8,3865.2,0.7608]
[1734035317380,4.93446135,3866.0,3865.2,0.7608]
[1734035318998,2.58673,3865.9,3865.2,0.7608]
[1734035319459,2.58686,3865.7,3865.2,0.7608]
[1734035319662,2.34780135,3866.0,3865.2,0.7608]
[1734035319819,2.58689,3865.7,3865.2,0.7608]
[1734035320569,5.73422135,3866.4,3865.2,0.7608]
[1734035320720,0.62570194,3866.3,3865.2,0.7608]
[1734035321243,2.58665,3866.0,3865.2,0.7608]
[1734035321757,0.62570194,3866.3,3865.2,0.7608]
[1734035321758,2.58652,3866.2,3865.2,0.7608]
[1734035321967,4.93419135,3866.4,3865.2,2.3543292]
[1734035322129,4.26194014,3866.7,3865.4,0.8269]
[1734035322331,2.34780135,3866.8,3865.7,2.32816]
[1734035322718,2.34780135,3866.8,3865.8,0.7918]
[1734035322920,4.93393135,3866.8,3865.8,0.7918]
[1734035323262,2.5862,3866.7,3865.8,0.7918]
[1734035323421,2.34780135,3866.8,3865.9,0.312002]
[1734035323975,2.34780135,3866.8,3866.0,0.7918]
[1734035324319,2.58605,3866.9,3866.0,0.7918]
[1734035326222,4.93370135,3867.2,3866.0,2.32792]
[1734035326455,4.93370135,3867.2,3866.1,0.768]
[1734035326722,4.93370135,3867.2,3866.3,0.768]
[1734035327229,2.34780135,3867.2,3866.3,0.768]
[1734035327430,2.58604,3867.0,3866.3,0.768]
[1734035327890,4.93365135,3867.2,3866.3,0.768]
[1734035328837,2.58585,3867.2,3866.3,0.768]
[1734035330605,2.925715,3867.2,3866.3,0.768]
[1734035333104,2.58592,3867.1,3866.3,0.768]
[1734035334338,0.339865,3867.2,3866.3,0.768]
[1734035334339,2.586,3867.0,3866.3,0.768]
[1734035334837,2.58591,3867.1,3866.3,0.768]
[1734035335246,1.0801581,3867.5,3866.3,0.768]
[1734035335423,0.8002,3867.8,3866.5,0.8248]
[1734035335744,2.58565,3867.5,3866.5,0.8248]
[1734035337243,3.38569,3867.8,3866.5,0.7781]
[1734035337399,2.34780135,3868.0,3866.4,0.309586]
[1734035337400,1.08134357,3868.0,3866.7,0.7781]
[1734035337600,2.58532,3868.0,3866.9,0.7781]
[1734035337792,2.58532,3868.0,3867.1,0.7781]
[1734035339548,2.58539,3867.9,3867.1,0.7781]
[1734035339717,2.58533,3868.0,3867.1,0.7781]
[1734035340408,2.58542,3867.9,3867.1,0.7781]
[1734035341542,1.08134357,3868.2,3867.1,0.7781]
[1734035341749,2.34780135,3868.0,3867.1,0.7781]
[1734035341916,2.58546,3867.8,3867.1,0.7781]
[1734035342116,2.58566,3867.5,3867.1,0.7781]
[1734035342752,6.01446492,3868.0,3867.1,0.7781]
[1734035342753,2.58572,3867.4,3867.1,0.7781]
[1734035343216,2.58572,3867.4,3866.3,3.0]
[1734035343217,2.58572,3867.4,3866.8,0.7882]
[1734035343545,0.49335213,3867.3,3866.8,0.7882]
[1734035343748,2.58572,3867.4,3866.8,0.7882]
[1734035344048,2.34780135,3867.6,3866.8,0.7882]
[1734035344206,2.58565,3867.5,3866.8,0.7882]
[1734035344566,2.58557,3867.7,3866.8,0.7882]
[1734035344704,2.58566,3867.5,3866.8,0.7882]
[1734035345054,2.58578,3867.3,3866.8,0.7882]
[1734035345722,2.34780135,3867.6,3866.8,0.7882]